[Event "34th GER-ch Seniors-65 2022"]
[Site "Magdeburg"]
[Date "2022.08.13"]
[Round "2.1"]
[White "Stoeckle, Hans-Joachim"]
[Black "Boidman, Yuri"]
[Result "0-1"]
[ECO "B01"]
[WhiteElo "1996"]
[BlackElo "2286"]
[Annotator "TA"]
[PlyCount "90"]
[EventDate "2022.08.12"]
[EventType "swiss"]
[EventCountry "GER"]
[SourceTitle "playchess.com"]
[Source "ChessBase"]
[SourceQuality "1"]
[TimeControl "40/5400+30:1800+30"]

{[%evp 11,90,52,77,46,110,97,140,27,10,-46,-39,-44,-27,-71,-66,-78,-64,-94,146,-16,-9,-13,-13,-13,-17,-10,-10,-8,-7,-7,0,-7,-6,-11,-9,-33,-31,-41,-27,-17,0,0,0,-69,-69,-67,-55,-75,-43,-83,-43,-174,-108,-193,-83,-125,-152,-175,-159,-236,-174,-864,-856,-602,-155,-108,-8,-733,-766,-827,-792,-2008,-1831,-29965,-29965,-29973,-29973,-29972,-29973,-29964,-4618]} 1. e4 {[%emt 0:00:13]} d5 {[%emt 0:00:13]} 2. exd5 {[%emt 0:00:17]} Nf6 {[%emt 0:00:07]} 3. d4 {[%emt 0:00:28]} Bg4 {[%emt 0:00:12]} 4. Nf3 {[%emt 0:00:53]} Qxd5 {[%emt 0:00:14]} 5. Be2 {[%emt 0:00:46]} Nc6 {[%emt 0:00:22]} 6. h3 {[%emt 0:01:05]} Bh5 {[%emt 0:00:50]} 7. Nc3 {[%emt 0:03:04] B01: Scandinavian Defence.} (7. c4 $5 {[%cal Rc4d5]} Qd6 8. g4 $14) 7... Qd6 {[%emt 0:03:25]} (7... Qd7 $14) 8. Nb5 $16 {[%emt 0:07:12]} Qd8 {[%emt 0:11:17] [#]} 9. g4 $146 {[%emt 0:05:08]} (9. d5 $1 $16 {[%cal Rd5c6]} Nb4 10. Bd2 Nbxd5 11. c4) ({Predecessor:} 9. d5 Bxf3 10. Bxf3 Ne5 11. Bf4 Nxf3+ 12. Qxf3 Rc8 13. Nxa7 Ra8 14. Nb5 Rc8 15. O-O-O {1-0 (29) Tronenkovs,V (2265)-Rakhmangulova,A (2191) Chess.com INT 2020}) 9... Bg6 $11 {[%emt 0:04:09]} 10. Bf4 {[%emt 0:11:56]} (10. c4 $11) 10... Nd5 $15 {[%emt 0:01:36]} 11. Bg3 {[%emt 0:00:19]} a6 $1 {[%emt 0:00:46][%cal Ba7a6,Ba6b5][%mdl 32]} 12. c4 {[%emt 0:05:30]} axb5 {[%emt 0:01:06]} 13. cxd5 {[%emt 0:07:12]} Qxd5 {[%emt 0:00:23]} 14. O-O {[%emt 0:04:53]} O-O-O $2 {[%emt 0:05:48] Black is more active.} (14... h5 $17 {keeps the pressure on. ...hxg4 is the strong threat.} 15. Qb3 Be4) 15. Rc1 $2 {[%emt 0:04:46]} (15. a4 $1 $16 {[%cal Ra4b5]} b4 16. a5) 15... e6 $11 {[%emt 0:01:49]} 16. a4 {[%emt 0:01:28]} Bd6 {[%emt 0:07:46]} 17. axb5 {[%emt 0:05:35] [#]} (17. Bxd6 {is interesting.} Rxd6 18. axb5 Nxd4 19. Nxd4 Qxd4 20. Qb3) 17... Nxd4 $1 {[%emt 0:01:19]} 18. Qxd4 {[%emt 0:10:55]} Qxd4 {[%emt 0:03:29]} 19. Nxd4 {[%emt 0:03:10] Threatens to win with Rc4.} Bxg3 {[%emt 0:00:07]} 20. Nxe6 {[%emt 0:03:21]} Rd2 {[%emt 0:06:35]} 21. fxg3 {[%emt 0:02:52]} fxe6 {[%emt 0:01:13]} 22. Bc4 {[%emt 0:00:54]} Rxb2 {[%emt 0:00:42]} 23. Bxe6+ {[%emt 0:00:41]} Kb8 {[%emt 0:00:07]} 24. Bf5 {[%emt 0:05:12]} Be8 {[%emt 0:18:10]} 25. Bd3 $1 {[%emt 0:01:43]} Rb3 {[%emt 0:03:19]} 26. Rfd1 {[%emt 0:01:48]} Rf8 {[%emt 0:02:40]} 27. Rb1 {[%emt 0:01:21] [#]} (27. Bf1 $11) 27... Rxd3 $1 $15 {[%emt 0:04:54]} 28. Rxd3 {[%emt 0:00:17][%mdl 4096] Endgame Threatening mate with Rd8+. KRR-KRB} Bg6 {[%emt 0:00:07]} 29. Rbd1 {[%emt 0:01:18] aiming for Rc3.} Bxd3 {[%emt 0:00:13]} 30. Rxd3 $17 {[%emt 0:00:04] KR-KR} Rf7 $1 {[%emt 0:00:07] Inhibits Rd7.} 31. Kg2 {[%emt 0:00:49]} (31. Re3 $15) 31... Ka7 $1 $19 {[%emt 0:00:31]} 32. h4 {[%emt 0:01:27]} (32. Rb3 $17) 32... Kb6 {[%emt 0:00:15]} 33. Rd5 {[%emt 0:01:31]} c6 {[%emt 0:00:57]} 34. bxc6 {[%emt 0:00:31]} Kxc6 {[%emt 0:00:09]} 35. Rh5 {[%emt 0:01:10]} g6 $1 {[%emt 0:03:07]} 36. Rg5 {[%emt 0:01:55]} (36. Re5) 36... b5 {[%emt 0:01:10]} 37. h5 {[%emt 0:00:23] [#]} Rf6 $2 {[%emt 0:00:07]} (37... gxh5 $1 $19 {and Black stays clearly on top.} 38. Rxh5 b4) 38. Re5 $17 {[%emt 0:01:31]} b4 {[%emt 0:02:00]} ({Black should play} 38... Rd6 $17 {Strongly threatening ...b4.} 39. Re8 b4) 39. g5 $2 {[%emt 0:01:53][%mdl 8192] [#]} (39. Re7 $11) 39... Rd6 $1 $19 {[%emt 0:02:48]} 40. g4 {[%emt 0:03:01]} Rd4 {[%emt 0:10:50] White must now prevent ...b3.} 41. hxg6 {[%emt 0:31:54]} hxg6 {[%emt 0:30:11] ( -> ...b3)} 42. Kf3 {[%emt 0:00:00]} b3 {[%emt 0:00:00] Black mates.} 43. Re2 {[%emt 0:00:00]} Kc5 {[%emt 0:00:00]} 44. Ke3 {[%emt 0:00:00]} Kc4 {[%emt 0:00:00]} 45. Rb2 {[%emt 0:00:00]} Rxg4 {[%emt 0:07:50] Weighted Error Value: White=0.77/Black=0.36} (45... Rd1 $142 46. Rh2 Kc3 47. Kf4 Rf1+ 48. Ke5 b2 49. Rh3+ Kc4 50. Rh7 b1=Q 51. Rc7+ Kd3 52. Rd7+ Ke3 53. Rd5 Qb8+ 54. Ke6 Ke4 55. Rd2 Qe5+ 56. Kd7 Rf7+ 57. Kc6 Rc7+ 58. Kb6 Qc5+ 59. Ka6 Ra7#) 0-1

[Event "34th GER-ch Seniors-65 2022"]
[Site "Magdeburg"]
[Date "2022.08.13"]
[Round "2.3"]
[White "Heid, Michael"]
[Black "Klundt, Klaus"]
[Result "1/2-1/2"]
[ECO "D02"]
[WhiteElo "1935"]
[BlackElo "2288"]
[Annotator "TA"]
[PlyCount "161"]
[EventDate "2022.08.12"]
[EventType "swiss"]
[EventCountry "GER"]
[SourceTitle "playchess.com"]
[Source "ChessBase"]
[SourceQuality "1"]
[TimeControl "40/5400+30:1800+30"]

{[%evp 25,161,-23,-10,-18,-6,-20,-5,-19,-5,-12,0,0,0,-10,0,-11,-2,-14,-6,-14,-8,-9,-8,-10,-10,-13,-16,-14,0,0,0,0,9,-15,0,0,0,0,0,0,0,-27,-10,-50,-18,-17,0,-44,-20,-31,-22,-33,-33,-87,-87,-87,-87,-87,-87,-87,-87,-87,-87,-96,-87,-95,-87,-95,-87,-87,-87,-87,-87,-113,-96,-114,-87,-87,-94,-94,-94,-102,-102,-210,-210,-195,-28,-30,-30,-187,-187,-187,-187,-187,-93,-176,-176,-208,-26,-48,-20,-20,-20,-20,-20,-20,-20,-20,-18,-26,-26,-26,-3,-3,0,0,0,0,8,8,8,8,8,0,0,0,0,0,0,0,0,0,0,0,0,0,0,0]} 1. d4 {[%emt 0:00:08]} d5 {[%emt 0:00:07]} 2. Bf4 {[%emt 0:00:06]} c5 {[%emt 0:00:11]} 3. c3 {[%emt 0:00:13]} Nc6 {[%emt 0:00:12]} 4. e3 {[%emt 0:00:27]} Nf6 {[%emt 0:00:16]} 5. Bd3 {[%emt 0:00:15]} e6 {[%emt 0:00:26]} 6. Nf3 {[%emt 0:01:55]} Bd6 {[%emt 0:00:34]} 7. Bxd6 {[%emt 0:05:13]} Qxd6 {[%emt 0:00:07]} 8. Nbd2 {[%emt 0:00:04]} O-O {[%emt 0:00:50]} 9. O-O {[%emt 0:00:27]} e5 {[%emt 0:00:55]} 10. dxe5 {[%emt 0:01:22]} Nxe5 {[%emt 0:00:09]} 11. Nxe5 {[%emt 0:00:02]} Qxe5 {[%emt 0:00:03]} 12. Nf3 {[%emt 0:00:58]} Qe7 {[%emt 0:01:15]} 13. h3 {[%emt 0:02:17]} Bd7 {[%emt 0:06:40]} 14. Re1 {[%emt 0:01:49] D02: 1 d4 d5 2 Nf3 sidelines, including 2...Nf6 3 g3 and 2...Nf6 3 Bf4.} Bc6 {[%emt 0:01:07]} 15. Qe2 {[%emt 0:08:36]} Rfe8 {[%emt 0:02:56]} 16. Rad1 {[%emt 0:03:24]} Rad8 {[%emt 0:02:30]} 17. Bb5 {[%emt 0:07:27] [#]} Qc7 $146 {[%emt 0:02:46]} ({Predecessor:} 17... Ne4 18. Bxc6 bxc6 19. Nd2 Nd6 20. Qa6 Qc7 21. c4 Re6 22. b3 Rg6 23. cxd5 cxd5 {0-1 (39) Moyano Morales,F (2290)-Bravo Barranco,N (2290) Spain 1995}) 18. Bxc6 {[%emt 0:01:56]} Qxc6 {[%emt 0:00:17]} 19. Qd3 {[%emt 0:06:09]} Rd7 {[%emt 0:04:10]} 20. Qf5 {[%emt 0:08:07] Strongly threatening Ne5.} Qa4 {[%emt 0:07:08]} 21. Qb1 {[%emt 0:07:13]} h6 {[%emt 0:02:27]} 22. Rd3 {[%emt 0:07:27]} Qe4 {[%emt 0:06:34]} 23. Red1 {[%emt 0:00:46]} Red8 {[%emt 0:01:29]} 24. R3d2 {[%emt 0:00:43]} Qe6 {[%emt 0:02:02]} 25. Qc2 {[%emt 0:03:10]} Ne4 {[%emt 0:09:25]} 26. Rd3 {[%emt 0:02:01]} c4 {[%emt 0:02:01]} 27. Rd4 {[%emt 0:00:12]} b5 {[%emt 0:00:28]} 28. Nd2 {[%emt 0:06:27][%cal Rd2e4]} Nc5 {[%emt 0:02:03]} 29. Nf3 {[%emt 0:00:42]} Nd3 {[%emt 0:00:46]} 30. a3 {[%emt 0:05:11]} a5 {[%emt 0:01:26]} 31. R4xd3 {[%emt 0:03:32]} cxd3 {[%emt 0:00:11]} 32. Qxd3 {[%emt 0:00:02]} Qb6 {[%emt 0:44:59]} 33. Qd4 {[%emt 0:02:17]} Rb7 {[%emt 0:00:00]} 34. Qe5 {[%emt 0:05:17]} Qe6 {[%emt 0:00:00]} 35. Qf4 {[%emt 0:01:22]} b4 {[%emt 0:00:00]} 36. Nd4 {[%emt 0:02:04]} Qd6 {[%emt 0:00:00]} 37. Qxd6 {[%emt 0:00:22]} Rxd6 {[%emt 0:00:00]} 38. axb4 {[%emt 0:00:02]} axb4 $11 {[%emt 0:00:00][%mdl 4096] Endgame KRR-KRN} 39. Nf5 {[%emt 0:00:02]} ({White should play} 39. cxb4 $15 Rxb4 40. b3) 39... Rdd7 $17 {[%emt 0:00:00]} 40. cxb4 {[%emt 0:00:26]} Rxb4 {[%emt 0:00:00]} 41. Rxd5 {[%emt 0:30:38][%mdl 64] Decoy} Rxd5 {[%emt 0:02:34]} 42. Ne7+ {[%emt 0:00:01]} Kf8 {[%emt 0:00:09]} 43. Nxd5 {[%emt 0:00:02]} Rxb2 {[%emt 0:00:09] KR-KN} 44. g3 {[%emt 0:01:37]} Ke8 {[%emt 0:00:22]} 45. Kg2 {[%emt 0:01:20]} Kd7 {[%emt 0:00:15]} 46. Kf3 {[%emt 0:00:20]} Kd6 {[%emt 0:00:21]} 47. Nf4 {[%emt 0:01:01]} Ra2 {[%emt 0:01:44]} 48. Nh5 {[%emt 0:02:50]} g6 {[%emt 0:00:10]} 49. Nf6 {[%emt 0:01:43]} Ke6 {[%emt 0:00:42]} 50. Ne4 {[%emt 0:00:34]} Rc2 {[%emt 0:01:24]} 51. g4 {[%emt 0:02:54]} Rc1 {[%emt 0:07:58]} 52. Ng3 {[%emt 0:00:56]} Ke5 {[%emt 0:00:31]} 53. h4 {[%emt 0:00:00]} Rc4 {[%emt 0:00:00]} 54. h5 {[%emt 0:00:00]} (54. Ne2 $17 {is the only way for White.}) 54... f5 $1 $19 {[%emt 0:00:00]} 55. gxf5 {[%emt 0:00:00]} gxh5 {[%emt 0:00:00]} (55... gxf5 $19 {White must now prevent ...Kf6.} 56. Ne2 Rh4) 56. Nxh5 $11 {[%emt 0:00:00]} Kxf5 {[%emt 0:00:00]} 57. e4+ $2 {[%emt 0:00:00] [#]} (57. Nf4 $11 {and White stays safe.}) 57... Kg5 $1 $19 {[%emt 0:00:00]} 58. Ng3 {[%emt 0:00:00]} Rc3+ {[%emt 0:00:00]} 59. Kg2 {[%emt 0:00:00]} h5 {[%emt 0:00:00]} (59... Rc6 $19 {and Black stays clearly on top. Threatens to win with ...Ra6.} 60. Kf3 Re6) 60. e5 {[%emt 0:00:00] [#]} (60. Nf5 $17 {might work better.}) 60... Rc8 $1 {[%emt 0:00:00]} 61. Ne4+ {[%emt 0:00:00]} Kg6 $2 {[%emt 0:00:00]} (61... Kf4 $19 62. f3 Kxe5) 62. Kg3 {[%emt 0:00:00]} Rh8 {[%emt 0:00:00]} 63. Nd6 {[%emt 0:00:00]} Ra8 {[%emt 0:00:00]} 64. f4 {[%emt 0:00:00]} Ra3+ {[%emt 0:00:00]} 65. Kh4 {[%emt 0:00:17]} Ra4 {[%emt 0:00:00]} 66. Kg3 {[%emt 0:00:10]} h4+ {[%emt 0:03:00]} 67. Kf3 {[%emt 0:00:45]} Ra3+ {[%emt 0:01:11]} 68. Kg2 {[%emt 0:00:05]} ({Not} 68. Kg4 $2 h3 69. f5+ Kh7 $19) 68... Kh5 {[%emt 0:02:31]} 69. e6 {[%emt 0:02:33] The position is equal.} Re3 {[%emt 0:00:18]} 70. Nf5 {[%emt 0:00:02]} Re1 {[%emt 0:14:55]} 71. Kf2 {[%emt 0:02:18]} Rxe6 {[%emt 0:02:53]} (71... Re4 $5 72. Kf3 Re1 $11) 72. Ng7+ {[%emt 0:00:07]} Kg4 {[%emt 0:00:06] ( -> ...Re7)} 73. Nxe6 $11 {[%emt 0:00:13] KN-KP} Kf5 {[%emt 0:00:01]} 74. Kf3 {[%emt 0:01:15] Intending Nd4+ and mate.} Kxe6 {[%emt 0:00:07] KP-KP} 75. Kg4 {[%emt 0:00:01]} Kf6 {[%emt 0:00:35]} 76. Kxh4 {[%emt 0:00:03]} Kf5 {[%emt 0:00:06]} 77. Kg3 {[%emt 0:00:05]} Kf6 {[%emt 0:00:09]} 78. Kg4 $1 {[%emt 0:00:05]} Kg6 {[%emt 0:00:05]} 79. f5+ {[%emt 0:00:09]} Kf6 {[%emt 0:00:16]} 80. Kf4 {[%emt 0:00:03]} Kf7 {[%emt 0:00:07]} 81. Kg5 {[%emt 0:00:06] Weighted Error Value: White=0.18 (very precise) /Black=0.14 (very precise)} 1/2-1/2

[Event "34th GER-ch Seniors-65 2022"]
[Site "Magdeburg"]
[Date "2022.08.13"]
[Round "2.4"]
[White "Polster, Wolfgang"]
[Black "Rackowiak, Hans"]
[Result "1/2-1/2"]
[ECO "B01"]
[WhiteElo "2237"]
[BlackElo "1986"]
[Annotator "TA"]
[PlyCount "60"]
[EventDate "2022.08.12"]
[EventType "swiss"]
[EventCountry "GER"]
[SourceTitle "playchess.com"]
[Source "ChessBase"]
[SourceQuality "1"]
[TimeControl "40/5400+30:1800+30"]

{[%evp 10,60,38,31,84,91,95,82,96,87,143,69,71,16,0,-15,-11,-21,0,0,0,0,0,4,8,0,64,-40,-38,-44,-39,-37,-12,-14,-14,-74,-79,-122,-114,-224,0,0,76,45,81,83,76,0,0,0,0,-11,-19]} 1. e4 {[%emt 0:00:06]} d5 {[%emt 0:00:06]} 2. exd5 {[%emt 0:00:43]} Nf6 {[%emt 0:00:09][%cal Bg8f6,Bf6d5,Bd5b6][%mdl 32]} 3. Bb5+ {[%emt 0:01:02]} Bd7 {[%emt 0:00:08]} 4. Be2 {[%emt 0:00:18]} Nxd5 {[%emt 0:00:15]} 5. d4 {[%emt 0:00:17]} Bf5 {[%emt 0:01:00]} 6. Nf3 {[%emt 0:00:32]} g6 {[%emt 0:01:33] B01: Scandinavian Defence.} (6... Nb4 $14 7. Na3 e6) 7. O-O $16 {[%emt 0:02:40]} Bg7 {[%emt 0:00:21]} 8. c4 {[%emt 0:02:40]} Nb6 {[%emt 0:01:01][%cal Oc7c5] White is better.} 9. Nc3 {[%emt 0:00:44]} Nc6 {[%emt 0:01:16] [#]} (9... O-O $142) 10. c5 $146 {[%emt 0:02:10]} ({White should try} 10. d5 $1 $16 {[%cal Rd5c6]} Nb8 11. Qb3) ({Predecessor:} 10. d5 Ne5 11. Bf4 Nxf3+ 12. Bxf3 O-O 13. c5 Nd7 14. g4 g5 15. Bxg5 h6 16. Bh4 Bh7 17. d6 cxd6 18. cxd6 {1-0 (40) Fritz,M (2200)-Grkinic,G (800) IECG email 1998}) 10... Nd5 $14 {[%emt 0:01:13] [#]} 11. a3 {[%emt 0:04:55]} (11. Qb3 $1 $16 Nxc3 12. bxc3) 11... O-O $11 {[%emt 0:01:00]} 12. Bc4 {[%emt 0:06:17]} Nxc3 {[%emt 0:04:11]} 13. bxc3 {[%emt 0:00:08]} e5 {[%emt 0:01:19][%cal Re5d4]} 14. Bg5 {[%emt 0:06:50]} Qd7 {[%emt 0:01:52][%cal Re5d4]} 15. d5 {[%emt 0:00:20]} Na5 {[%emt 0:00:38][%cal Bc6a5,Ba5b7,Bb7c5][%mdl 32]} 16. Ba2 {[%emt 0:00:28]} h6 $36 {[%emt 0:01:43][%mdl 2048] White is under pressure.} 17. Be3 {[%emt 0:02:37]} b5 {[%emt 0:03:40]} ({Black should play} 17... Qb5 $11) 18. cxb6 {[%emt 0:06:39]} (18. Nh4 $14) 18... axb6 $15 {[%emt 0:01:21]} 19. Nh4 $1 {[%emt 0:00:44]} Nb7 {[%emt 0:01:27]} 20. Nxf5 {[%emt 0:00:20]} gxf5 {[%emt 0:01:05]} 21. Bb3 {[%emt 0:03:26]} f4 {[%emt 0:00:26]} 22. Bd2 {[%emt 0:00:27]} (22. Bc1 $1 $11 {remains equal.}) 22... Nc5 $17 {[%emt 0:00:25]} 23. c4 {[%emt 0:01:55]} e4 {[%emt 0:05:23]} 24. Bc2 {[%emt 0:03:26]} Qf5 $2 {[%emt 0:06:56]} ({Avoid the trap} 24... Bxa1 $2 25. Qxa1 f3 26. Qe5 (26. Bxh6 $2 Qg4 $19)) (24... f3 $19 25. h3 Bxa1 26. Qxa1 fxg2 27. Kxg2 Kh7) 25. f3 $11 {[%emt 0:01:08]} Rfe8 {[%emt 0:05:35]} (25... Bd4+ $11 {keeps the balance.} 26. Kh1 Bxa1 27. Qxa1 f6) 26. fxe4 $16 {[%emt 0:01:59]} Bd4+ {[%emt 0:01:28]} 27. Kh1 {[%emt 0:00:20]} Nxe4 {[%emt 0:01:10]} 28. Bxf4 {[%emt 0:02:04] A strong pair of Bishops.} (28. Rb1 $16) 28... Bxa1 $11 {[%emt 0:08:45] The position is equal.} 29. Qxa1 {[%emt 0:01:21]} Ng3+ {[%emt 0:03:27]} 30. Bxg3 {[%emt 0:09:18] Really sharp!} Qxc2 {[%emt 0:00:13] Weighted Error Value: White=0.28 (precise) /Black=0.29 (precise)} 1/2-1/2

[Event "34th GER-ch Seniors-65 2022"]
[Site "Magdeburg"]
[Date "2022.08.13"]
[Round "2.5"]
[White "Biller, Helmut"]
[Black "Syre, Christian"]
[Result "0-1"]
[ECO "B08"]
[WhiteElo "2005"]
[BlackElo "2243"]
[Annotator "TA"]
[PlyCount "81"]
[EventDate "2022.08.12"]
[EventType "swiss"]
[EventCountry "GER"]
[SourceTitle "playchess.com"]
[Source "ChessBase"]
[SourceQuality "1"]
[TimeControl "40/5400+30:1800+30"]

{[%evp 16,81,-7,0,-9,-10,-12,-42,-38,-58,-89,-168,-172,-154,-12,-128,-117,-118,-128,-122,-113,-121,-114,-120,-91,-92,-90,-82,-90,-77,-83,-103,-102,-116,-100,-115,-122,-158,-133,-160,-147,-312,-343,-330,-335,-345,-213,-333,-310,-360,-366,-351,-320,-307,-127,-179,-137,-145,-138,-250,-247,-236,-250,-255,-252,-241,-246,-6269]} 1. d4 {[%emt 0:00:07]} d6 {[%emt 0:00:32]} 2. e4 {[%emt 0:00:35]} g6 {[%emt 0:00:15]} 3. Nc3 {[%emt 0:00:45]} Bg7 {[%emt 0:00:14]} 4. Be3 {[%emt 0:00:21]} Nc6 {[%emt 0:00:32]} 5. h3 {[%emt 0:04:36]} e5 {[%emt 0:00:37]} 6. Nf3 {[%emt 0:00:16]} exd4 {[%emt 0:02:30]} 7. Nxd4 {[%emt 0:00:16]} Nf6 {[%emt 0:00:26]} 8. Be2 {[%emt 0:04:51]} O-O {[%emt 0:00:33]} 9. O-O {[%emt 0:00:17]} Re8 {[%emt 0:00:04] B08: Pirc Defence: Classical System.} 10. Bf3 {[%emt 0:00:20]} Ne5 {[%emt 0:01:48]} 11. Be2 {[%emt 0:00:45] [#]} a6 $146 {[%emt 0:00:02] Black is slightly better.} ({Predecessor:} 11... Bd7 12. Qd2 Nc6 13. Bd3 Ne5 14. f4 Nxd3 15. cxd3 c6 16. Rae1 d5 17. e5 Nh5 18. Bf2 Bh6 {1-0 (30) Shabalov,A (2522)-Thiede,L (2437) Berlin 2015}) 12. f4 {[%emt 0:01:32]} Ned7 {[%emt 0:00:06]} 13. Bd3 {[%emt 0:02:06] [#]} (13. Bf3 $17) 13... c5 $1 $19 {[%emt 0:06:48]} 14. Nf3 {[%emt 0:02:27]} Qc7 {[%emt 0:02:47]} (14... b5 $17 {And now ...Bb7 would win.} 15. e5 dxe5 16. fxe5 Nxe5 17. Bxc5 b4) 15. e5 {[%emt 0:07:58]} (15. a4 $11 {keeps the balance.}) 15... dxe5 $17 {[%emt 0:00:42]} 16. fxe5 {[%emt 0:00:10]} Nxe5 {[%emt 0:00:42][%cal Oc8h3] White must now prevent ...Bxh3!} 17. Bf4 {[%emt 0:00:25]} Nxf3+ {[%emt 0:07:24]} 18. Qxf3 {[%emt 0:00:11] [#]} Qb6 {[%emt 0:03:02]} 19. Na4 {[%emt 0:05:02]} Qb4 {[%emt 0:02:01]} 20. Bg5 {[%emt 0:00:31]} Qxa4 {[%emt 0:03:46]} 21. Bxf6 {[%emt 0:00:11]} Bxf6 {[%emt 0:00:23]} 22. Qxf6 {[%emt 0:00:08]} Be6 {[%emt 0:02:06][%cal Bc8e6,Be6d5,Bd5c6][%mdl 32]} 23. Rf4 {[%emt 0:01:58]} Qd7 {[%emt 0:02:13]} 24. Raf1 {[%emt 0:04:39]} Qe7 {[%emt 0:07:18]} ({Of course not} 24... Bxa2 $6 25. b3 b5 26. Kh1 $11) 25. Qc3 {[%emt 0:02:53]} b5 {[%emt 0:04:55]} ({Much less strong is} 25... Bxa2 26. b3 $16) 26. h4 {[%emt 0:05:17]} Bd5 {[%emt 0:11:47]} 27. Qd2 {[%emt 0:04:42][%cal Od3g6]} Rad8 {[%emt 0:01:19] Threatens to win with ...c4.} 28. Ra1 $2 {[%emt 0:08:03]} (28. Qf2 $17) 28... Qe5 $19 {[%emt 0:08:53]} ({Avoid the trap} 28... c4 $2 29. Bf1 $19) 29. Qc1 {[%emt 0:03:01]} Rd6 {[%emt 0:14:07]} 30. Bf1 {[%emt 0:03:28]} Kg7 {[%emt 0:06:39] ...Rf6 is the strong threat.} 31. c4 {[%emt 0:07:09]} (31. c3 $142) 31... Bc6 {[%emt 0:00:13] aiming for ...Rd4.} 32. Qc3 {[%emt 0:07:31]} Rd4 {[%emt 0:01:39]} 33. Rxd4 {[%emt 0:00:37]} cxd4 {[%emt 0:00:01]} 34. Qd2 {[%emt 0:02:30]} Qe3+ {[%emt 0:02:05]} (34... bxc4 $19 {has better winning chances.} 35. Bxc4 d3) 35. Qf2 {[%emt 0:04:22]} (35. Qxe3 $17 dxe3 36. cxb5 axb5 37. Rc1) 35... Re4 {[%emt 0:01:45][%cal Be8e4,Be4g4,Bg4d4,Bd4d2][%mdl 32]} 36. cxb5 {[%emt 0:02:38]} axb5 {[%emt 0:00:04]} 37. g3 {[%emt 0:01:52]} (37. Qxe3 $17 dxe3 38. Re1) 37... Rg4 {[%emt 0:00:32]} 38. Qxe3 {[%emt 0:00:20]} dxe3 {[%emt 0:00:02]} 39. Kh2 {[%emt 0:00:30]} Rd4 {[%emt 0:00:33]} 40. Re1 {[%emt 0:03:01]} Rd2+ {[%emt 0:00:03]} 41. Re2 $2 {[%emt 0:42:39] Weighted Error Value: White=0.34/Black=0.22 (precise)} (41. Kg1) 0-1

[Event "34th GER-ch Seniors-65 2022"]
[Site "Magdeburg"]
[Date "2022.08.13"]
[Round "2.6"]
[White "Buchal, Stephan"]
[Black "Eichner, Christian"]
[Result "1-0"]
[ECO "A29"]
[WhiteElo "2230"]
[BlackElo "2024"]
[Annotator "TA"]
[PlyCount "71"]
[EventDate "2022.08.12"]
[EventType "swiss"]
[EventCountry "GER"]
[SourceTitle "playchess.com"]
[Source "ChessBase"]
[SourceQuality "1"]
[TimeControl "40/5400+30:1800+30"]

{[%evp 18,71,5,9,140,142,130,131,177,177,162,152,191,190,167,170,166,27,99,90,162,160,160,132,135,135,138,138,140,136,137,139,138,124,140,137,142,135,163,164,159,156,493,516,488,496,460,429,29982,29983,29995,29990,29996,29991,29995,29996]} 1. c4 {[%emt 0:00:08]} e5 {[%emt 0:00:04]} 2. g3 {[%emt 0:00:11]} Nf6 {[%emt 0:00:06]} 3. Bg2 {[%emt 0:00:12]} d5 {[%emt 0:00:06]} 4. cxd5 {[%emt 0:00:10]} Nxd5 {[%emt 0:00:06]} 5. Nf3 {[%emt 0:00:18]} Nc6 {[%emt 0:00:07]} 6. O-O {[%emt 0:00:14]} Nb6 {[%emt 0:00:18]} 7. d3 {[%emt 0:00:34]} Be7 {[%emt 0:00:06]} 8. a3 {[%emt 0:00:24]} a5 {[%emt 0:01:16]} 9. Nc3 {[%emt 0:01:49]} O-O {[%emt 0:00:09]} 10. Be3 {[%emt 0:01:33]} Nd5 {[%emt 0:02:11] A29: English Opening: Four Knights Variation with 4 g3.} (10... Be6 $11) 11. Nxd5 $16 {[%emt 0:02:10]} Qxd5 {[%emt 0:00:08]} 12. Nd4 {[%emt 0:01:11] Against Qb5} Qd6 {[%emt 0:02:32]} (12... Qd7 $16 {is a better defense.} 13. Nxc6 bxc6) 13. Nxc6 $18 {[%emt 0:00:28]} bxc6 {[%emt 0:00:06] [#]} 14. Rc1 $146 {[%emt 0:00:30]} ({Predecessor:} 14. Qc2 Bd7 15. Rfd1 Rab8 16. d4 Be6 17. Rd2 Bd5 18. dxe5 Qxe5 19. Bf4 Qe6 20. Bxc7 {1-0 (29) Stachanczyk,J (2202)-Pawelec,B (2115) Wagrowiec 2016}) 14... Ra6 {[%emt 0:04:49]} 15. Qa4 {[%emt 0:13:01]} Bd7 {[%emt 0:08:39]} 16. Bc5 {[%emt 0:22:01]} Qe6 {[%emt 0:00:20]} 17. b4 {[%emt 0:10:48]} (17. Bxe7 $18 Qxe7 18. Bxc6 Bxc6 19. Rxc6 Rxc6 20. Qxc6) 17... Rb8 {[%emt 0:03:27]} (17... Rfa8 $11 {keeps the balance.}) 18. Bxe7 $16 {[%emt 0:10:06] White is more active.} c5 {[%emt 0:17:21] [#]} (18... Qxe7 $16 19. Bxc6 (19. bxa5 c5 $14) 19... Qd6 20. Bxd7 axb4) 19. Qc2 $1 $18 {[%emt 0:07:08]} Qxe7 {[%emt 0:00:08]} 20. Qxc5 {[%emt 0:01:45]} Qxc5 {[%emt 0:00:48]} 21. Rxc5 {[%emt 0:00:04]} axb4 {[%emt 0:00:23]} 22. axb4 {[%emt 0:01:18]} ({Much worse is} 22. Rxc7 $6 bxa3 23. Rxd7 a2 $14) 22... Rxb4 {[%emt 0:03:24]} 23. Rxe5 {[%emt 0:02:56]} Kf8 {[%emt 0:15:23]} 24. f4 {[%emt 0:04:00]} Rb2 {[%emt 0:03:22]} 25. Bf3 {[%emt 0:05:02]} Rc2 {[%emt 0:06:25]} 26. Kf2 {[%emt 0:03:52]} f6 {[%emt 0:00:55]} 27. Re3 {[%emt 0:01:29]} g6 {[%emt 0:07:06]} 28. Rb1 {[%emt 0:01:26] Threatens to win with Rb8+.} Rb6 {[%emt 0:01:00] Prevents Rb8+.} 29. Ra1 {[%emt 0:00:15] Black must now prevent Ra8+.} Bc6 {[%emt 0:01:05] Inhibits Ra8+. Loses the game.} (29... Kf7 $16 {is more resistant.} 30. Bd5+ Be6) 30. Bxc6 {[%emt 0:01:10]} Rcxc6 {[%emt 0:00:33][%mdl 4096] Endgame KRR-KRR} 31. Ra8+ {[%emt 0:00:23]} Kf7 {[%emt 0:02:02]} 32. Rae8 {[%emt 0:00:37][%csl Ge8][%cal Re3e7] [#]} g5 {[%emt 0:06:13]} (32... Re6 $18) 33. f5 {[%emt 0:02:02][%csl Ge8][%cal Re3e7] White mates.} Kg7 {[%emt 0:00:08]} 34. R3e7+ {[%emt 0:01:07]} Kh6 {[%emt 0:00:09]} 35. g4 {[%emt 0:01:04]} Rb4 {[%emt 0:00:48]} 36. Rh8 {[%emt 0:00:23] Weighted Error Value: White=0.12 (very precise) /Black=0.65} 1-0